fUSD/lending_fUSD_20260624
["ID","MTS","AMOUNT","RATE_DAILY","PERIOD"]
[426319493,1782300633000,-500.0,0.00018999,2]
[426319498,1782300633000,-500.0,0.00018999,2]
[426319497,1782300633000,-500.0,0.00018999,2]
[426319500,1782300633000,-500.0,0.00018999,2]
[426319459,1782300633000,-3512.99500532,0.0001862,2]
[426319495,1782300633000,-500.0,0.00018999,2]
[426319482,1782300633000,-386.15939869,0.000189,2]
[426319492,1782300633000,-500.0,0.00018999,2]
[426319479,1782300633000,-573.02,0.00018857,2]
[426319468,1782300633000,-151.0,0.0001874,2]
[426319499,1782300633000,-500.0,0.00018999,2]
[426319463,1782300633000,-500.0,0.00018696,2]
[426319465,1782300633000,-644.27,0.0001873,2]
[426319466,1782300633000,-396.14,0.00018733,2]
[426319462,1782300633000,-158.0,0.00018689,2]
[426319458,1782300633000,-781.24,0.00018578,2]
[426319467,1782300633000,-573.72,0.00018736,2]
[426319461,1782300633000,-228.0,0.00018664,2]
[426319469,1782300633000,-151.0,0.0001874,2]
[426319472,1782300633000,-1555.5,0.0001876,2]
[426319474,1782300633000,-573.63,0.0001877,2]
[426319470,1782300633000,-151.0,0.0001874,2]
[426319471,1782300633000,-160.55251232,0.00018757,2]
[426319473,1782300633000,-210.84124237,0.00018765,2]
[426319476,1782300633000,-900.0,0.000188,6]
[426319475,1782300633000,-737.0,0.00018779,5]
[426319477,1782300633000,-1000.0,0.0001881,2]
[426319478,1782300633000,-57488.07294537,0.0001881,2]
[426319480,1782300633000,-2042.53737317,0.000189,2]
[426319502,1782300634000,-52113.28812636,0.00019,2]
[426319503,1782300634000,-63773.79141706,0.00019,2]
[426319504,1782300634000,-2211.47462952,0.00019,2]
[426319505,1782300634000,-1872.68994,0.00019,2]
[426319538,1782300640000,-1815.74989618,0.00019,2]
[426319541,1782300640000,-300.0,0.00019,2]
[426319526,1782300640000,-488.32685115,0.00019,2]
[426319525,1782300640000,-481.3527521,0.00019,2]
[426319523,1782300640000,-966.55778285,0.00019,2]
[426319524,1782300640000,-2650.0222032,0.00019,2]
[426319522,1782300640000,-394.30787908,0.000189,2]
[426319950,1782300646000,-2042.53737317,0.000191,2]
[426319951,1782300646000,-757.08,0.00019119,2]
[426319948,1782300646000,-1229.0,0.00019078,2]
[426319946,1782300646000,-1277.0,0.00019078,2]
[426319943,1782300646000,-228781.20163295,0.00019,2]
[426319947,1782300646000,-1361.0,0.00019078,2]
[426319944,1782300646000,-585.2522269,0.00019,2]
[426319949,1782300646000,-3562.0,0.00019078,2]
[426319945,1782300646000,-383.0,0.00019078,2]
[426319942,1782300646000,-71570.78438203,0.00019,2]
[426319940,1782300646000,-934.76,0.000189,2]
[426319953,1782300646000,-500.0,0.00019178,2]
[426319941,1782300646000,-65.67995572,0.000189,2]
[426319954,1782300646000,-500.0,0.00019178,2]
[426319952,1782300646000,-500.0,0.00019178,2]
[426319967,1782300646000,-1883.82241191,0.00019399,2]
[426319955,1782300646000,-172.63402527,0.00019178,2]
[426319966,1782300646000,-12663.98522307,0.00019399,2]
[426319970,1782300646000,-1219.19352263,0.00019399,2]
[426319968,1782300646000,-923.25468907,0.00019399,2]
[426319965,1782300646000,-151.0,0.00019397,2]
[426319964,1782300646000,-350.43,0.00019355,7]
[426319969,1782300646000,-1473.33721193,0.00019399,2]
[426319961,1782300646000,-500.0,0.00019355,7]
[426319960,1782300646000,-386.15939869,0.00019344,2]
[426319959,1782300646000,-1613.0535,0.00019308,2]
[426319962,1782300646000,-500.0,0.00019355,7]
[426319957,1782300646000,-191.04915151,0.000193,2]
[426319956,1782300646000,-2042.53737317,0.000193,2]
[426319963,1782300646000,-670.77,0.00019355,7]
[426319984,1782301023000,-191.969436,0.00015987,2]
[426319985,1782301026000,200.92056507,0.00028767,120]
[426319986,1782301074000,-150.0,0.00015988,2]
[426319987,1782301128000,-150.0,0.00015988,2]
[426319996,1782301181000,-252.09,0.00015767,2]
[426319999,1782301234000,-151.0,0.00015767,2]
[426320000,1782301287000,-150.0,0.00015767,2]
[426320001,1782301341000,-150.79,0.00015745,2]
[426320002,1782301395000,-166.66,0.00014877,2]
[426320003,1782301448000,-151.0,0.00013765,2]
[426320210,1782301502000,-151.0,0.00013765,2]
[426320211,1782301503000,8365.492797,0.00028767,120]
[426320228,1782301721000,459.64,0.00028315,120]
[426320284,1782301832000,-152.0,0.00015747,2]
[426320285,1782301832000,-216.42324807,0.00015749,2]
[426320286,1782301832000,-151.0,0.00015751,2]
[426320287,1782301832000,-151.0,0.00015767,2]
[426320288,1782301832000,-150.0,0.00015767,2]
[426320291,1782301832000,-150.0,0.00015767,2]
[426320290,1782301832000,-151.0,0.00015767,2]
[426320289,1782301832000,-151.0,0.00015767,2]
[426320292,1782301832000,-150.0,0.00015767,2]
[426320299,1782301832000,-150.0,0.00015988,2]
[426320300,1782301832000,-151.0,0.00015988,2]
[426320293,1782301832000,-166.66,0.00015817,2]
[426320304,1782301832000,-300.0,0.00016,2]
[426320297,1782301832000,-151.0,0.00015988,2]
[426320298,1782301832000,-152.0,0.00015988,2]
[426320296,1782301832000,-151.0,0.00015988,2]
[426320295,1782301832000,-151.0,0.00015988,2]
[426320283,1782301832000,-150.0,0.00015747,2]
[426320294,1782301832000,-152.0,0.00015822,2]
[426320281,1782301832000,-150.74289424,0.00015504,2]
[426320266,1782301832000,-300.0,0.00014087,2]
[426320280,1782301832000,-243.04731045,0.00015368,2]
[426320254,1782301832000,-600.0,0.00013883,2]
[426320258,1782301832000,-250.0,0.00014,2]
[426320256,1782301832000,-300.0,0.00013941,2]
[426320260,1782301832000,-150.0,0.00014047,2]
[426320262,1782301832000,-151.0,0.00014047,2]
[426320264,1782301832000,-300.0,0.00014087,2]
[426320269,1782301832000,-600.0,0.00014176,2]
[426320279,1782301832000,-300.0,0.00015271,2]
[426320282,1782301832000,-15.91710576,0.00015504,2]
[426320268,1782301832000,-600.0,0.00014176,2]
[426320272,1782301832000,-151.0,0.00014896,2]
[426320273,1782301832000,-153.0,0.00014896,2]
[426320271,1782301832000,-151.0,0.00014896,2]
[426320278,1782301832000,-196.15,0.00015212,2]
[426320274,1782301832000,-151.0,0.00014955,2]
[426320276,1782301832000,-600.0,0.00015142,2]
[426320277,1782301832000,-166.66,0.0001519,2]
[426320275,1782301832000,-600.0,0.00015142,2]
[426320270,1782301832000,-150.0,0.00014896,2]
[426320303,1782301832000,-151.0,0.00015991,2]
[426320326,1782301832000,-585.4,0.00016438,2]
[426320301,1782301832000,-151.0,0.00015988,2]
[426320322,1782301832000,-151.0,0.00016294,2]
[426320329,1782301832000,-3562.0,0.00016518,2]
[426320328,1782301832000,-153.0,0.00016518,2]
[426320339,1782301832000,-3514.90627974,0.000179,2]
[426320332,1782301832000,-1229.0,0.00016518,2]
[426320331,1782301832000,-1361.0,0.00016518,2]
[426320335,1782301832000,-150.79,0.00016926,2]
[426320338,1782301832000,-1904.45496359,0.00017589,2]
[426320323,1782301832000,-153.0,0.00016294,2]
[426320337,1782301832000,-721.65348462,0.00017589,2]
[426320334,1782301832000,-150.79,0.00016533,2]
[426320333,1782301832000,-217.151,0.00016518,2]
[426320340,1782301832000,-172.99933282,0.000179,2]
[426320346,1782301832000,-1031.93125297,0.0001795,2]
[426320341,1782301832000,-345.01939423,0.000179,2]
[426320343,1782301832000,-4570.41129991,0.0001795,2]
[426320342,1782301832000,-1778.2464,0.0001795,2]
[426320344,1782301832000,-251393.35692906,0.0001795,2]
[426320336,1782301832000,-150.79,0.0001732,2]
[426320327,1782301832000,-166.66,0.00016443,2]
[426320330,1782301832000,-1277.0,0.00016518,2]
[426320345,1782301832000,-3210.51827989,0.0001795,2]
[426320306,1782301832000,-151.0,0.00016068,2]
[426320305,1782301832000,-150.0,0.00016005,2]
[426320312,1782301832000,-150.0,0.00016149,2]
[426320311,1782301832000,-150.79,0.00016139,2]
[426320308,1782301832000,-151.0,0.00016072,2]
[426320310,1782301832000,-166.66,0.0001613,2]
[426320324,1782301832000,-151.0,0.00016338,2]
[426320309,1782301832000,-150.0,0.00016086,2]
[426320315,1782301832000,-152.0,0.00016149,2]
[426320307,1782301832000,-150.0,0.00016069,2]
[426320314,1782301832000,-152.0,0.00016149,2]
[426320313,1782301832000,-151.0,0.00016149,2]
[426320325,1782301832000,-150.0,0.00016338,2]
[426320317,1782301832000,-150.0,0.00016149,2]
[426320321,1782301832000,-152.0,0.00016264,2]
[426320319,1782301832000,-151.0,0.00016258,2]
[426320318,1782301832000,-151.0,0.00016194,2]
[426320316,1782301832000,-151.0,0.00016149,2]
[426320320,1782301832000,-152.0,0.00016259,2]
[426320302,1782301832000,-151.0,0.00015988,2]
[426320376,1782301838000,-970.71821901,0.0001795,2]
[426320375,1782301838000,-11207.62453301,0.0001795,2]
[426320374,1782301838000,-6259.14414932,0.0001795,2]
[426320373,1782301838000,-448.30419999,0.0001795,2]
[426320371,1782301838000,-935.0,0.00016518,2]
[426320372,1782301838000,-2255.69911572,0.0001795,2]
[426320404,1782301840000,-411.15336399,0.0001795,2]
[426320407,1782301840000,-1322.91230409,0.0001795,2]
[426320406,1782301840000,-699.86606215,0.0001795,2]
[426320405,1782301840000,-2791.12071158,0.0001795,2]
[426320444,1782301843000,-3818.47582284,0.0001795,2]
[426320443,1782301843000,-792.06325809,0.0001795,2]
[426320442,1782301843000,-674.0,0.0001795,2]
[426320445,1782301843000,-720.84570248,0.0001795,2]
[426320453,1782301846000,-231912.9177959,0.0001795,2]
[426320458,1782301846000,-500.0,0.00018049,2]
[426320456,1782301846000,-474.67923404,0.00018049,2]
[426320457,1782301846000,-500.0,0.00018049,2]
[426320455,1782301846000,-350.0,0.00018,2]
[426320460,1782301846000,-500.0,0.00018049,2]
[426320462,1782301846000,-500.0,0.00018049,2]
[426320459,1782301846000,-500.0,0.00018049,2]
[426320454,1782301846000,-905.3148106,0.00018,2]
[426320452,1782301846000,-191.969436,0.0001786,2]
[426320463,1782301846000,-500.0,0.00018049,2]
[426320466,1782301846000,-281553.619891,0.0001805,2]
[426320465,1782301846000,-500.0,0.00018049,2]
[426320467,1782301846000,-1277.61,0.0001805,2]
[426320468,1782301846000,-2319.93155405,0.0001805,2]
[426320469,1782301846000,-491.06439782,0.0001805,2]
[426320461,1782301846000,-240.59271287,0.00018049,2]
[426320464,1782301846000,-500.0,0.00018049,2]
[426320471,1782301978000,-15000.0,0.00023,30]
[426320473,1782302102000,359.62899,0.00027329,120]
[426320486,1782302636000,161.0,0.00028767,120]
[426320913,1782303032000,-500.0,0.00014999,2]
[426320904,1782303032000,-168.85039264,0.000149,2]
[426320907,1782303032000,-535.4468003,0.000149,2]
[426320905,1782303032000,-252538.0768,0.000149,2]
[426320906,1782303032000,-3483.7065297,0.000149,2]
[426320901,1782303032000,-500.0,0.00014899,2]
[426320898,1782303032000,-600.0,0.0001381,2]
[426320900,1782303032000,-541.54742066,0.00014899,2]
[426320902,1782303032000,-196.00010591,0.00014899,2]
[426320897,1782303032000,-600.0,0.0001381,2]
[426320893,1782303032000,-300.0,0.000138,2]
[426320895,1782303032000,-600.0,0.0001381,2]
[426320891,1782303032000,-300.0,0.000138,2]
[426320892,1782303032000,-300.0,0.000138,2]
[426320889,1782303032000,-166.61142405,0.00013778,2]
[426320888,1782303032000,-254.96394755,0.00013698,2]
[426320885,1782303032000,-249.12494034,0.00013698,2]
[426320884,1782303032000,-249.76893425,0.00013686,2]
[426320910,1782303032000,-500.0,0.00014999,2]
[426320896,1782303032000,-600.0,0.0001381,2]
[426320909,1782303032000,-151.0,0.00014997,2]
[426320919,1782303032000,-500.0,0.00014999,2]
[426320915,1782303032000,-500.0,0.00014999,2]
[426320911,1782303032000,-500.0,0.00014999,2]
[426320942,1782303032000,-613.23786313,0.00015,2]
[426320939,1782303032000,-169486.04429833,0.00015,2]
[426320935,1782303032000,-500.0,0.00014999,2]
[426320936,1782303032000,-500.0,0.00014999,2]
[426320932,1782303032000,-500.0,0.00014999,2]
[426320934,1782303032000,-500.0,0.00014999,2]
[426320931,1782303032000,-500.0,0.00014999,2]
[426320930,1782303032000,-500.0,0.00014999,2]
[426320926,1782303032000,-221.35471241,0.00014999,2]
[426320937,1782303032000,-500.0,0.00014999,2]
[426320928,1782303032000,-500.0,0.00014999,2]
[426320922,1782303032000,-166.45481675,0.00014999,2]
[426320925,1782303032000,-500.0,0.00014999,2]
[426320923,1782303032000,-507.10545596,0.00014999,2]
[426320921,1782303032000,-2551.257,0.00014999,2]
[426320918,1782303032000,-500.0,0.00014999,2]
[426320940,1782303032000,-277.70821029,0.00015,2]
[426320917,1782303032000,-500.0,0.00014999,2]
[426320914,1782303032000,-500.0,0.00014999,2]
[426320927,1782303032000,-500.0,0.00014999,2]
[426321071,1782303038000,-500.0,0.00014999,2]
[426321070,1782303038000,-500.0,0.00014999,2]
[426321069,1782303038000,-2936.6643,0.000149,2]
[426321072,1782303038000,-10391.77217749,0.00015,2]
[426321073,1782303038000,-1220.78023802,0.00015,2]
[426321075,1782303038000,-1465.70254899,0.00015,2]
[426321079,1782303038000,-26356.99703642,0.00015,2]
[426321076,1782303038000,-3216.5170958,0.00015,2]
[426321077,1782303038000,-276.91140967,0.00015,2]
[426321078,1782303038000,-20769.82453043,0.00015,2]
[426321081,1782303038000,-2642.76,0.00015,2]
[426321080,1782303038000,-1580.67653147,0.00015,2]
[426321074,1782303038000,-341.50517263,0.00015,2]
[426321086,1782303040000,-359.21389733,0.00015,2]
[426321085,1782303040000,-53698.55264867,0.00015,2]
[426321089,1782303040000,-3738.38533,0.00015,2]
[426321087,1782303040000,-176846.16368589,0.00015,2]
[426321088,1782303040000,-500.0,0.00015,2]
[426321090,1782303040000,-775.67129044,0.00015,2]
[426321110,1782303043000,-3477.47423098,0.00015,2]
[426321108,1782303043000,-184.65449926,0.00014899,2]
[426321109,1782303043000,-15533.34280193,0.00015,2]
[426321135,1782303047000,-1631.12723882,0.00015,2]
[426321136,1782303047000,-14305.46679408,0.00015,2]
[426321134,1782303047000,-0.076224,0.00015,2]
[426321137,1782303047000,-666.54434994,0.00015,2]
[426321139,1782303047000,-3538.21255224,0.00015,2]
[426321138,1782303047000,-398.94113863,0.00015,2]
[426321152,1782303793000,402.0,0.00028767,120]
[426321153,1782303845000,4709.42,0.00016,120]
[426321177,1782304231000,-392.34219634,0.00013886,2]
[426321180,1782304231000,-1337.25,0.00013949,2]
[426321192,1782304231000,-150.0,0.00014,2]
[426321181,1782304231000,-379.08319447,0.00013999,2]
[426321178,1782304231000,-600.0,0.00013931,2]
[426321176,1782304231000,-200.0,0.00013866,2]
[426321175,1782304231000,-600.0,0.00013854,2]
[426321174,1782304231000,-166.66,0.00013849,2]
[426321166,1782304231000,-166.66,0.00013027,2]
[426321171,1782304231000,-252.2564275,0.00013822,2]
[426321172,1782304231000,-200.0,0.0001383,2]
[426321173,1782304231000,-300.0,0.00013838,2]
[426321170,1782304231000,-252.1,0.00013822,2]
[426321169,1782304231000,-166.66,0.00013575,2]
[426321168,1782304231000,-1000.0,0.00013469,2]
[426321167,1782304231000,-166.66,0.00013301,2]
[426321191,1782304231000,-152.0,0.00014,2]
[426321179,1782304231000,-600.0,0.00013931,2]
[426321183,1782304231000,-250.0,0.00014,2]
[426321200,1782304231000,-151.0,0.00014,2]
[426321182,1782304231000,-287.20007414,0.00013999,2]
[426321184,1782304231000,-151.0,0.00014,2]
[426321213,1782304231000,-151.0,0.00014,2]
[426321212,1782304231000,-152.0,0.00014,2]
[426321211,1782304231000,-151.0,0.00014,2]
[426321208,1782304231000,-151.0,0.00014,2]
[426321206,1782304231000,-151.0,0.00014,2]
[426321194,1782304231000,-151.0,0.00014,2]
[426321202,1782304231000,-150.0,0.00014,2]
[426321196,1782304231000,-151.0,0.00014,2]
[426321210,1782304231000,-151.0,0.00014,2]
[426321204,1782304231000,-150.0,0.00014,2]
[426321195,1782304231000,-151.0,0.00014,2]
[426321193,1782304231000,-152.0,0.00014,2]
[426321189,1782304231000,-153.0,0.00014,2]
[426321188,1782304231000,-151.0,0.00014,2]
[426321187,1782304231000,-152.0,0.00014,2]
[426321186,1782304231000,-151.0,0.00014,2]
[426321197,1782304231000,-153.0,0.00014,2]
[426321185,1782304231000,-151.0,0.00014,2]
[426321244,1782304232000,-151.0,0.00014348,2]
[426321231,1782304232000,-166.66,0.00014124,2]
[426321230,1782304232000,-151.0,0.00014,2]
[426321238,1782304232000,-200.0,0.00014329,2]
[426321237,1782304232000,-500.0,0.00014329,2]
[426321236,1782304232000,-250.0,0.00014329,2]
[426321239,1782304232000,-300.0,0.00014329,2]
[426321234,1782304232000,-15361.6754,0.000143,2]
[426321235,1782304232000,-300.0,0.00014329,2]
[426321232,1782304232000,-253.43,0.00014145,2]
[426321241,1782304232000,-300.0,0.00014329,2]
[426321233,1782304232000,-1337.25,0.00014298,2]
[426321240,1782304232000,-300.0,0.00014329,2]
[426321226,1782304232000,-150.0,0.00014,2]
[426321228,1782304232000,-152.0,0.00014,2]
[426321225,1782304232000,-151.0,0.00014,2]
[426321220,1782304232000,-151.0,0.00014,2]
[426321224,1782304232000,-150.0,0.00014,2]
[426321222,1782304232000,-151.0,0.00014,2]
[426321221,1782304232000,-151.0,0.00014,2]
[426321223,1782304232000,-153.0,0.00014,2]
[426321229,1782304232000,-150.0,0.00014,2]
[426321216,1782304232000,-152.0,0.00014,2]
[426321214,1782304232000,-151.0,0.00014,2]
[426321217,1782304232000,-151.0,0.00014,2]
[426321215,1782304232000,-151.0,0.00014,2]
[426321219,1782304232000,-151.0,0.00014,2]
[426321218,1782304232000,-150.0,0.00014,2]
[426321242,1782304232000,-299.52221628,0.00014329,2]
[426321227,1782304232000,-151.0,0.00014,2]
[426321247,1782304232000,-152.0,0.00014348,2]
[426321246,1782304232000,-150.0,0.00014348,2]
[426321245,1782304232000,-151.0,0.00014348,2]
[426321243,1782304232000,-179.25748836,0.00014348,2]
[426321275,1782304232000,-1005.3639732,0.000149,2]
[426321274,1782304232000,-841.02999998,0.000149,2]
[426321276,1782304232000,-556.02436834,0.000149,2]
[426321272,1782304232000,-268.95559825,0.000149,2]
[426321269,1782304232000,-500.0,0.00014898,2]
[426321265,1782304232000,-33326.4581,0.00014849,2]
[426321273,1782304232000,-839.41670225,0.000149,2]
[426321270,1782304232000,-500.0,0.00014899,2]
[426321264,1782304232000,-617.54067802,0.00014849,2]
[426321263,1782304232000,-500.0,0.00014848,2]
[426321271,1782304232000,-13781.14420499,0.000149,2]
[426321267,1782304232000,-500.0,0.00014898,2]
[426321266,1782304232000,-7754.96855574,0.00014885,2]
[426321268,1782304232000,-500.0,0.00014898,2]
[426321262,1782304232000,-500.0,0.00014848,2]
[426321248,1782304232000,-151.0,0.00014348,2]
[426321257,1782304232000,-163.66533043,0.000145,2]
[426321251,1782304232000,-166.66,0.00014398,2]
[426321249,1782304232000,-150.0,0.00014348,2]
[426321261,1782304232000,-500.0,0.00014848,2]
[426321253,1782304232000,-166.82772698,0.000144,2]
[426321260,1782304232000,-17294.57,0.00014839,2]
[426321250,1782304232000,-151.0,0.00014348,2]
[426321256,1782304232000,-10000.0,0.000145,2]
[426321252,1782304232000,-42567.6089,0.000144,2]
[426321254,1782304232000,-1000.0,0.00014499,2]
[426321259,1782304232000,-1337.25,0.00014647,2]
[426321258,1782304232000,-365.28244322,0.00014615,2]
[426321255,1782304232000,-133967.07052021,0.000145,2]
[426321277,1782304237000,-1196.69,0.000149,2]
[426321282,1782304238000,-5843.9025168,0.00014949,2]
[426321283,1782304238000,-1546.14780495,0.00014949,2]
[426321278,1782304238000,-1215.02268081,0.000149,2]
[426321280,1782304238000,-500.0,0.00014948,2]
[426321281,1782304238000,-1830.3439398,0.00014949,2]
[426321284,1782304238000,-500.0,0.00014949,2]
[426321279,1782304238000,-164.25495325,0.00014918,2]
[426321320,1782304239000,-5878.4275788,0.00014949,2]
[426321316,1782304239000,-27204.35872955,0.00014949,2]
[426321323,1782304239000,-172.0,0.00014949,2]
[426321318,1782304239000,-10607.9347118,0.00014949,2]
[426321321,1782304239000,-11133.3442461,0.00014949,2]
[426321325,1782304239000,-1337.25,0.00014995,2]
[426321319,1782304239000,-983.4634543,0.00014949,2]
[426321317,1782304239000,-2335.7388635,0.00014949,2]
[426321324,1782304239000,-500.0,0.00014985,2]
[426321327,1782304239000,-2154.60159533,0.00014999,2]
[426321322,1782304239000,-829.6318033,0.00014949,2]
[426321326,1782304239000,-1033.31351895,0.00014999,2]
[426321367,1782304240000,-243.04731045,0.00015368,2]
[426321368,1782304240000,-600.0,0.000154,2]
[426321371,1782304240000,-500.0,0.00015463,2]
[426321377,1782304240000,-7754.96855568,0.00015776,2]
[426321370,1782304240000,-500.0,0.00015463,2]
[426321365,1782304240000,-161.590149,0.00015344,2]
[426321361,1782304240000,-284.744574,0.00015344,2]
[426321363,1782304240000,-284.744574,0.00015344,2]
[426321357,1782304240000,-677.131901,0.000153,2]
[426321362,1782304240000,-284.744574,0.00015344,2]
[426321356,1782304240000,-677.131901,0.000153,2]
[426321364,1782304240000,-151.0,0.00015344,2]
[426321372,1782304240000,-29792.65,0.00015464,2]
[426321375,1782304240000,-1033.68935389,0.000156,2]
[426321366,1782304240000,-1337.25,0.00015344,2]
[426321373,1782304240000,-155.373377,0.00015464,2]
[426321376,1782304240000,-166.82772692,0.00015614,2]
[426321374,1782304240000,-1033.68935389,0.000155,2]
[426321389,1782304240000,-151.49,0.00016275,2]
[426321386,1782304240000,-1033.68935389,0.000161,2]
[426321382,1782304240000,-173.37,0.00015924,2]
[426321380,1782304240000,-500.0,0.00015827,2]
[426321385,1782304240000,-186.04,0.00016038,2]
[426321378,1782304240000,-2000.0,0.00015778,2]
[426321384,1782304240000,-300.0,0.00016,2]
[426321383,1782304240000,-617.54067802,0.00015999,2]
[426321359,1782304240000,-677.131901,0.000153,2]
[426321369,1782304240000,-500.0,0.00015463,2]
[426321355,1782304240000,-151.0,0.000153,2]
[426321335,1782304240000,-500.0,0.00014999,2]
[426321360,1782304240000,-284.744574,0.00015344,2]
[426321328,1782304240000,-259.85472851,0.00014999,2]
[426321329,1782304240000,-500.0,0.00014999,2]
[426321379,1782304240000,-1033.68935389,0.000158,2]
[426321332,1782304240000,-500.0,0.00014999,2]
[426321336,1782304240000,-500.0,0.00014999,2]
[426321338,1782304240000,-500.0,0.00014999,2]
[426321333,1782304240000,-500.0,0.00014999,2]
[426321339,1782304240000,-500.0,0.00014999,2]
[426321334,1782304240000,-500.0,0.00014999,2]
[426321331,1782304240000,-500.0,0.00014999,2]
[426321337,1782304240000,-500.0,0.00014999,2]
[426321340,1782304240000,-500.0,0.00014999,2]
[426321330,1782304240000,-583.72056529,0.00014999,2]
[426321341,1782304240000,-500.0,0.00014999,2]
[426321342,1782304240000,-500.0,0.00014999,2]
[426321346,1782304240000,-307.0,0.00015,2]
[426321347,1782304240000,-150.0,0.00015204,2]
[426321353,1782304240000,-546.71,0.00015268,2]
[426321349,1782304240000,-300.0,0.00015204,2]
[426321350,1782304240000,-600.0,0.00015204,2]
[426321348,1782304240000,-328.64488038,0.00015204,2]
[426321343,1782304240000,-500.0,0.00014999,2]
[426321345,1782304240000,-68030.48042019,0.00015,2]
[426321351,1782304240000,-300.0,0.00015204,2]
[426321352,1782304240000,-200.0,0.00015204,2]
[426321344,1782304240000,-1304.86,0.00014999,2]
[426321354,1782304240000,-1033.68935389,0.000153,2]
[426321358,1782304240000,-677.131901,0.000153,2]
[426321391,1782304240000,-268.39,0.00016275,2]
[426321447,1782304240000,-228.930291,0.0001779,2]
[426321387,1782304240000,-151.0,0.00016275,2]
[426321423,1782304240000,-1033.68935389,0.000168,2]
[426321428,1782304240000,-151.0,0.00017096,2]
[426321422,1782304240000,-171.45,0.00016712,2]
[426321425,1782304240000,-637.92233523,0.0001688,2]
[426321426,1782304240000,-573.72,0.00017092,2]
[426321424,1782304240000,-166.82772692,0.00016829,2]
[426321427,1782304240000,-151.0,0.00017096,2]
[426321436,1782304240000,-500.0,0.00017572,2]
[426321434,1782304240000,-151.0,0.00017572,2]
[426321444,1782304240000,-677.131901,0.0001779,2]
[426321437,1782304240000,-500.0,0.00017572,2]
[426321443,1782304240000,-151.0,0.0001779,2]
[426321441,1782304240000,-1993.101868,0.0001779,2]
[426321435,1782304240000,-151.0,0.00017572,2]
[426321439,1782304240000,-1993.101868,0.0001779,2]
[426321438,1782304240000,-500.0,0.00017572,2]
[426321446,1782304240000,-677.131901,0.0001779,2]
[426321445,1782304240000,-228.930291,0.0001779,2]
[426321440,1782304240000,-1993.101868,0.0001779,2]
[426321449,1782304240000,-677.131901,0.0001779,2]
[426321450,1782304240000,-228.930291,0.0001779,2]
[426321451,1782304240000,-228.930291,0.0001779,2]
[426321448,1782304240000,-677.131901,0.0001779,2]
[426321454,1782304240000,-151.0,0.000179,2]
[426321453,1782304240000,-1300.0,0.000178,6]
[426321452,1782304240000,-10332.0205,0.000178,2]
[426321381,1782304240000,-1033.68935389,0.000159,2]
[426321432,1782304240000,-7754.96855568,0.00017557,2]
[426321429,1782304240000,-617.54067802,0.00017149,2]
[426321442,1782304240000,-1993.101868,0.0001779,2]
[426321431,1782304240000,-1128.0,0.00017402,2]
[426321388,1782304240000,-151.0,0.00016275,2]
[426321433,1782304240000,-156.134355,0.00017572,2]
[426321406,1782304240000,-1993.101868,0.00016438,2]
[426321396,1782304240000,-1033.68935389,0.000163,2]
[426321399,1782304240000,-151.0,0.00016418,2]
[426321401,1782304240000,-606.3,0.00016438,2]